bitfinex-derivatives/quotes_BTCF0:USTF0_20250125
["timestamp","ask_amount","ask_price","bid_price","bid_amount"]
[1737796173820,0.1000956,104400.0,104390.0,0.85925701]
[1737796175619,0.1000956,104400.0,104390.0,2.35925701]
[1737796176123,0.1000956,104400.0,104390.0,2.42185701]
[1737796176320,0.06243744,104410.0,104390.0,2.42185701]
[1737796176321,0.00143744,104410.0,104400.0,0.153279]
[1737796176515,0.25825412,104420.0,104400.0,0.50748764]
[1737796176710,0.25825412,104420.0,104410.0,0.57195782]
[1737796177016,0.11477961,104420.0,104410.0,2.07195782]
[1737796177220,0.11477961,104420.0,104400.0,0.41869382]
[1737796177221,0.17267343,104420.0,104400.0,0.41869382]
[1737796177513,0.05789382,104410.0,104400.0,0.153276]
[1737796177717,0.0662,104410.0,104400.0,1.7113132]
[1737796177920,0.12409382,104410.0,104400.0,0.15341938]
[1737796178117,0.51529382,104410.0,104400.0,0.15341938]
[1737796178313,0.15449382,104410.0,104400.0,0.15341938]
[1737796178908,0.51529382,104410.0,104400.0,0.15341938]
[1737796179108,0.66855782,104410.0,104400.0,0.15341938]
[1737796179622,0.30775782,104410.0,104400.0,0.15341938]
[1737796180122,0.30775782,104410.0,104400.0,0.38276816]
[1737796180316,0.66855782,104410.0,104400.0,0.38276816]
[1737796181226,0.66855782,104410.0,104400.0,0.22949216]
[1737796183626,0.66855782,104410.0,104400.0,0.00014338]
[1737796183627,0.78333743,104410.0,104400.0,0.00014338]
[1737796185926,0.79497004,104410.0,104400.0,0.00014338]
[1737796187728,0.82366494,104410.0,104400.0,0.00014338]
[1737796203536,0.93842778,104410.0,104400.0,0.00014338]
[1737796205837,1.29922778,104410.0,104400.0,0.00014338]
[1737796208743,1.18446494,104410.0,104400.0,0.00014338]
[1737796212840,1.35663435,104410.0,104400.0,0.00014338]
[1737796214740,0.153279,104400.0,104390.0,0.40145505]
[1737796214946,0.62986664,104400.0,104390.0,0.40145505]
[1737796217148,0.62986664,104400.0,104390.0,0.22934878]
[1737796218038,0.153294,104390.0,104380.0,0.6321356]
[1737796218252,0.94288164,104390.0,104380.0,0.6321356]
[1737796222249,0.95373957,104390.0,104380.0,0.6321356]
[1737796222548,0.90880898,104390.0,104380.0,0.00014338]
[1737796224152,0.85091516,104390.0,104380.0,0.00014338]
[1737796225848,0.99422149,104390.0,104380.0,0.00014338]
[1737796229852,0.82205208,104390.0,104380.0,0.00014338]
[1737796236653,0.8799459,104390.0,104380.0,0.00014338]
[1737796240059,0.82205208,104390.0,104380.0,0.00014338]
[1737796244961,0.85091516,104390.0,104380.0,0.00014338]
[1737796246865,0.90880898,104390.0,104380.0,0.00014338]
[1737796248165,0.73663957,104390.0,104380.0,0.00014338]
[1737796248958,0.58334557,104390.0,104360.0,0.03223698]
[1737796249164,0.57201682,104370.0,104360.0,0.03223698]
[1737796249964,0.57201682,104370.0,104360.0,0.0308]
[1737796251565,0.93281682,104370.0,104360.0,0.0308]
[1737796251761,1.07653709,104370.0,104360.0,0.0308]
[1737796251966,1.24900142,104370.0,104360.0,0.0308]
[1737796255454,1.25976637,104370.0,104360.0,0.0308]
[1737796255659,1.08730204,104370.0,104360.0,0.0308]
[1737796258066,1.12030204,104370.0,104360.0,0.0308]
[1737796261260,1.06240822,104370.0,104360.0,0.0308]
[1737796261567,1.06240822,104370.0,104360.0,0.184138]
[1737796263070,1.12030204,104370.0,104360.0,0.184138]
[1737796264373,1.12030204,104370.0,104360.0,0.0308]
[1737796264870,1.09144579,104370.0,104360.0,0.0308]
[1737796265773,1.12264579,104370.0,104360.0,0.0308]
[1737796269475,1.00778177,104370.0,104360.0,0.0308]
[1737796270377,0.153338,104360.0,104350.0,0.00014338]
[1737796270565,0.62992564,104360.0,104350.0,0.00014338]
[1737796272569,0.47658764,104360.0,104330.0,2.00306505]
[1737796272770,0.21126082,104340.0,104330.0,2.00306505]
[1737796273380,0.21126082,104340.0,104330.0,2.33187397]
[1737796273669,0.21126082,104340.0,104330.0,2.30157397]
[1737796274379,0.21126082,104340.0,104330.0,0.76957397]
[1737796274781,0.21126082,104340.0,104330.0,2.26957397]
[1737796275080,0.21126082,104340.0,104330.0,0.76957397]
[1737796275373,0.21126082,104340.0,104330.0,2.26957397]
[1737796275579,0.21126082,104340.0,104330.0,0.76957397]
[1737796277168,0.21126082,104340.0,104330.0,0.15349586]
[1737796277374,0.2974015,104340.0,104330.0,0.15349586]
[1737796278074,0.35529532,104340.0,104330.0,0.15349586]
[1737796278977,0.2974015,104340.0,104330.0,0.15349586]
[1737796280482,0.30824926,104340.0,104330.0,0.38317278]
[1737796284684,0.2974015,104340.0,104330.0,0.38317278]
[1737796285382,0.6582015,104340.0,104330.0,0.38317278]
[1737796288281,0.6582015,104340.0,104330.0,0.15349586]
[1737796291909,0.71609532,104340.0,104330.0,0.15349586]
[1737796293791,0.6582015,104340.0,104330.0,0.15349586]
[1737796295791,0.77308504,104340.0,104330.0,0.15349586]
[1737796298691,0.83097886,104340.0,104330.0,0.15349586]
[1737796299584,0.83097886,104340.0,104330.0,0.32575548]
[1737796299787,0.83097886,104340.0,104330.0,0.17237548]
[1737796302893,0.71578109,104340.0,104330.0,0.00011586]
[1737796307501,0.77367491,104340.0,104330.0,0.00011586]
[1737796308098,0.71578109,104340.0,104330.0,0.00011586]
[1737796322306,0.71578109,104340.0,104330.0,0.17237548]
[1737796325008,0.88824542,104340.0,104330.0,0.17237548]
[1737796326307,0.94613924,104340.0,104330.0,0.17237548]
[1737796326707,0.79277224,104340.0,104320.0,0.51840186]
[1737796326902,0.66427582,104330.0,104320.0,0.51840186]
[1737796328111,0.72216964,104330.0,104320.0,0.51696426]
[1737796329312,1.03835424,104330.0,104320.0,0.00014338]
[1737796331806,0.153397,104320.0,104310.0,0.22967692]
[1737796332006,0.62998464,104320.0,104310.0,0.22967692]
[1737796333410,0.153411,104310.0,104300.0,0.5142413]
[1737796333606,0.21130482,104310.0,104300.0,0.5142413]
[1737796336816,0.29739919,104310.0,104300.0,0.5142413]
[1737796340415,0.3076152,104310.0,104300.0,0.5142413]
[1737796341417,0.22152083,104310.0,104300.0,0.5142413]
[1737796342320,0.153411,104310.0,104300.0,0.57213512]
[1737796343020,0.21130482,104310.0,104300.0,0.5142413]
[1737796343218,0.57210482,104310.0,104300.0,0.5142413]
[1737796345918,0.65819919,104310.0,104300.0,0.28456438]
[1737796350713,0.60030537,104310.0,104300.0,0.3424582]
[1737796350908,0.44689437,104310.0,104300.0,0.3424582]
[1737796353618,0.44689437,104310.0,104300.0,0.57213512]
[1737796357216,0.56168687,104310.0,104300.0,0.85927908]
[1737796366434,0.56168687,104310.0,104300.0,0.80138526]
[1737796366629,0.56168687,104310.0,104300.0,0.57170834]
[1737796371935,0.71509787,104310.0,104300.0,0.57170834]
[1737796372529,0.77759787,104310.0,104300.0,0.57170834]
[1737796373442,0.77759787,104310.0,104300.0,0.54070834]
[1737796373644,0.80979787,104310.0,104300.0,0.54070834]
[1737796373842,0.86769169,104310.0,104300.0,0.54070834]
[1737796378652,0.86769169,104310.0,104300.0,0.38728734]
[1737796381852,0.78159732,104310.0,104300.0,0.61742231]
[1737796382361,0.78159732,104310.0,104300.0,0.77084831]
[1737796384359,0.78159732,104310.0,104300.0,0.61742231]
[1737796385652,0.92531759,104310.0,104300.0,0.33027835]
[1737796388562,0.81052509,104310.0,104300.0,0.10014338]
[1737796392168,0.66680482,104310.0,104300.0,0.10014338]
[1737796396468,0.78169487,104310.0,104300.0,0.10014338]
[1737796399661,0.92541514,104310.0,104300.0,0.10014338]
[1737796402567,0.78169487,104310.0,104300.0,0.10014338]
[1737796406473,0.81052509,104310.0,104300.0,0.10014338]
[1737796411077,0.77832509,104310.0,104300.0,0.10014338]
[1737796411273,0.77832509,104310.0,104300.0,0.13224338]
[1737796412870,0.77832509,104310.0,104300.0,0.36237835]
[1737796415569,0.65793127,104310.0,104300.0,0.51580435]
[1737796416072,0.65793127,104310.0,104300.0,0.57369817]
[1737796416279,0.65793127,104310.0,104300.0,0.51580435]
[1737796418171,0.514211,104310.0,104300.0,0.51580435]
[1737796419484,0.514211,104310.0,104300.0,0.52575051]
[1737796421283,0.62917133,104310.0,104300.0,0.52575051]
[1737796423485,0.26837133,104310.0,104300.0,0.52575051]
[1737796423687,0.62917133,104310.0,104300.0,0.52575051]
[1737796426787,0.68706515,104310.0,104300.0,0.52575051]
[1737796430383,0.62917133,104310.0,104300.0,0.58364433]
[1737796430585,0.62917133,104310.0,104300.0,0.52575051]
[1737796430784,0.62917133,104310.0,104300.0,2.08364433]
[1737796430979,0.62917133,104310.0,104300.0,2.02575051]
[1737796431991,0.62917133,104310.0,104300.0,0.52575051]
[1737796434085,0.68706515,104310.0,104300.0,0.52575051]
[1737796438685,0.62917133,104310.0,104300.0,0.52575051]
[1737796441387,0.62917133,104310.0,104300.0,0.51580435]
[1737796441583,0.74956515,104310.0,104300.0,0.51580435]
[1737796441785,0.74956515,104310.0,104300.0,0.33027835]
[1737796442084,0.78226515,104310.0,104300.0,0.33027835]
[1737796443394,0.92598542,104310.0,104300.0,0.33027835]
[1737796446898,0.81102509,104310.0,104300.0,0.33027835]
[1737796449299,0.66730482,104310.0,104300.0,0.33027835]
[1737796450188,0.66730482,104310.0,104300.0,0.48370435]
[1737796453098,0.78223882,104310.0,104300.0,0.48370435]
[1737796456597,0.78223882,104310.0,104300.0,0.65624062]
[1737796456598,0.92595909,104310.0,104300.0,0.65624062]
[1737796457701,0.92595909,104310.0,104300.0,0.50281462]
[1737796460002,0.78223882,104310.0,104300.0,0.33027835]
[1737796470710,0.81102509,104310.0,104300.0,0.33027835]
[1737796474509,0.77832509,104310.0,104300.0,0.33027835]
[1737796474704,0.77832509,104310.0,104300.0,0.48370435]
[1737796475210,0.77832509,104310.0,104300.0,0.51630435]
[1737796479116,0.77832509,104310.0,104300.0,0.5262033]
[1737796479614,0.41752509,104310.0,104300.0,0.5262033]
[1737796484716,0.41752509,104310.0,104300.0,0.81334726]
[1737796484717,0.53247466,104310.0,104300.0,0.81334726]
[1737796488120,0.47495404,104310.0,104300.0,0.81334726]
[1737796489522,0.35456022,104310.0,104300.0,0.81334726]
[1737796489818,0.35456022,104310.0,104300.0,0.87124108]
[1737796490014,0.41245404,104310.0,104300.0,0.81334726]
[1737796495422,0.32625439,104310.0,104300.0,0.5262033]
[1737796496520,0.26836057,104310.0,104300.0,0.5262033]
[1737796497217,0.26836057,104310.0,104300.0,0.58409712]
[1737796497818,0.11494957,104310.0,104300.0,0.58409712]
[1737796499426,0.11494957,104310.0,104300.0,0.87124108]
[1737796499924,0.11494957,104310.0,104300.0,2.37124108]
[1737796500225,0.11494957,104310.0,104300.0,2.7899349]
[1737796500530,0.32665721,104320.0,104310.0,0.153411]
[1737796500822,0.3161846,104320.0,104310.0,0.63530482]
[1737796507026,0.3161846,104320.0,104310.0,2.20418482]
[1737796507229,0.3161846,104320.0,104310.0,2.26207864]
[1737796507526,0.3161846,104320.0,104310.0,2.28705568]
[1737796507725,0.3161846,104320.0,104310.0,2.3449495]
[1737796507920,0.3161846,104320.0,104310.0,2.24569034]
[1737796508222,0.3161846,104320.0,104310.0,2.28705563]
[1737796509330,0.3161846,104320.0,104310.0,2.24569034]
[1737796511132,0.3161846,104320.0,104310.0,2.20418482]
[1737796513036,0.37407842,104320.0,104310.0,0.28018482]
[1737796513330,0.43797842,104320.0,104310.0,0.222291]
[1737796513928,0.43797842,104320.0,104310.0,0.28018482]
[1737796514244,0.3800846,104320.0,104310.0,0.28018482]
[1737796514535,0.3800846,104320.0,104310.0,0.64098482]
[1737796515833,0.3800846,104320.0,104310.0,0.21130482]
[1737796516138,0.3800846,104320.0,104310.0,0.57210482]
[1737796516827,0.3800846,104320.0,104310.0,0.21130482]
[1737796517023,0.3800846,104320.0,104310.0,0.57210482]
[1737796517336,0.3800846,104320.0,104310.0,0.21130482]
[1737796517540,0.0639,104320.0,104310.0,0.61272356]
[1737796519535,0.63598982,104320.0,104310.0,0.55482974]
[1737796520243,0.27518982,104320.0,104310.0,0.55482974]
[1737796521139,0.217296,104320.0,104310.0,0.55482974]
[1737796521336,0.217296,104320.0,104310.0,0.61272356]
[1737796523143,0.27518982,104320.0,104310.0,0.55482974]
[1737796523533,0.63598982,104320.0,104310.0,0.55482974]
[1737796524041,0.27518982,104320.0,104310.0,0.55482974]
[1737796524237,0.63598982,104320.0,104310.0,0.55482974]
[1737796530259,0.72193697,104320.0,104310.0,0.55482974]
[1737796530760,0.73179162,104320.0,104310.0,0.55482974]
[1737796531161,0.6738978,104320.0,104310.0,0.61272356]
[1737796531462,0.66404315,104320.0,104310.0,0.61272356]
[1737796531861,0.66404315,104320.0,104310.0,2.11272356]
[1737796533563,0.44674715,104320.0,104310.0,2.11272356]
[1737796533770,0.08594715,104320.0,104310.0,2.50372356]
[1737796535567,0.08594715,104320.0,104310.0,2.53532356]
[1737796537969,0.60027753,104330.0,104320.0,0.153396]
[1737796538271,0.60027753,104330.0,104320.0,0.21128982]
[1737796538572,0.08609053,104330.0,104320.0,0.26918364]
[1737796538764,0.08609053,104330.0,104320.0,0.29978364]
[1737796541274,0.08609053,104330.0,104320.0,0.24188982]
[1737796541965,0.08609053,104330.0,104320.0,0.99104542]
[1737796546368,0.08609053,104330.0,104320.0,0.41337814]
[1737796546569,0.08609053,104330.0,104320.0,0.38277814]
[1737796547172,0.08609053,104330.0,104320.0,0.44067196]
[1737796548262,0.23947253,104330.0,104320.0,0.38277814]
[1737796549572,0.23947253,104330.0,104320.0,0.44067196]
[1737796551461,0.29736635,104330.0,104320.0,0.38277814]
[1737796555882,0.30691668,104330.0,104320.0,0.38277814]
[1737796557081,0.24902286,104330.0,104320.0,0.38277814]
[1737796565883,0.23947253,104330.0,104320.0,0.38277814]
[1737796566077,0.23947253,104330.0,104320.0,0.44067196]
[1737796569290,0.23947253,104330.0,104320.0,0.47107196]
[1737796570592,0.08609053,104330.0,104320.0,0.88976578]
[1737796570789,0.20102212,104330.0,104320.0,0.9475276]
[1737796571390,0.20102212,104330.0,104320.0,0.98901435]
[1737796572095,0.20102212,104330.0,104320.0,2.48901435]
[1737796577498,0.00014338,104330.0,104320.0,2.48901435]
[1737796589716,0.00014338,104330.0,104320.0,2.82387887]
[1737796593722,0.00014338,104330.0,104320.0,2.20187039]
[1737796597122,0.00014338,104330.0,104320.0,2.48888346]
[1737796600214,0.00014338,104330.0,104320.0,2.54659342]
[1737796602525,0.03234338,104330.0,104320.0,2.54659342]
[1737796603423,0.03234338,104330.0,104320.0,2.82387887]
[1737796605218,0.06384338,104330.0,104320.0,2.82387887]
[1737796605415,0.06384338,104330.0,104320.0,2.73558505]
[1737796605615,0.06384338,104330.0,104320.0,2.44350505]
[1737796606625,0.06384338,104330.0,104320.0,2.50139887]
[1737796607018,0.06384338,104330.0,104320.0,2.86219887]
[1737796607518,0.06384338,104330.0,104320.0,2.80430505]
[1737796610429,0.06384338,104330.0,104320.0,2.86219887]
[1737796612429,0.14979053,104330.0,104320.0,2.52738061]
[1737796613731,0.14979053,104330.0,104320.0,2.46948679]
[1737796613930,0.14979053,104330.0,104320.0,2.42800004]
[1737796615825,0.06384338,104330.0,104320.0,2.42800004]
[1737796616033,0.06384338,104330.0,104320.0,0.92800004]
[1737796616533,0.06384338,104330.0,104320.0,2.42800004]
[1737796620036,0.06384338,104330.0,104320.0,2.48589386]
[1737796624041,0.06384338,104330.0,104320.0,2.42800004]
[1737796627537,0.06384338,104330.0,104320.0,2.65759242]
[1737796635840,0.06384338,104330.0,104320.0,2.69905461]
[1737796636244,0.14979053,104330.0,104320.0,2.46946223]
[1737796636548,0.14979053,104330.0,104320.0,2.10866223]
[1737796636847,0.14979053,104330.0,104320.0,2.46946223]
[1737796637944,0.14979053,104330.0,104320.0,2.42800004]
[1737796638435,0.14979053,104330.0,104320.0,0.99977622]
[1737796638939,0.14979053,104330.0,104320.0,2.49977622]
[1737796640337,0.14979053,104330.0,104320.0,2.84449925]
[1737796650358,0.14979053,104330.0,104320.0,2.49977622]
[1737796652056,0.08609053,104330.0,104320.0,2.55767004]
[1737796654059,0.08609053,104330.0,104320.0,2.90239307]
[1737796655859,0.08609053,104330.0,104320.0,2.94274962]
[1737796656052,0.08609053,104330.0,104320.0,1.44274962]
[1737796656254,0.08609053,104330.0,104320.0,1.44320745]
[1737796656657,0.08609053,104330.0,104320.0,2.94320745]
[1737796657366,0.00014338,104330.0,104320.0,2.92687895]
[1737796658658,0.00014338,104330.0,104320.0,3.34557277]
[1737796658857,0.20087874,104340.0,104330.0,0.153382]
[1737796659063,0.20087874,104340.0,104330.0,0.69486964]
[1737796659255,0.20087874,104340.0,104330.0,0.73634582]
[1737796660451,0.08594715,104340.0,104330.0,0.73634582]
[1737796661858,0.08594715,104340.0,104330.0,0.77719823]
[1737796662063,0.08594715,104340.0,104330.0,2.27719823]
[1737796662263,0.08594715,104340.0,104330.0,2.23634582]
[1737796663350,0.25879524,104350.0,104330.0,2.23634582]
[1737796663351,0.25879524,104350.0,104330.0,2.08296382]
[1737796663663,0.25879524,104350.0,104340.0,0.66095464]
[1737796664358,0.00014338,104350.0,104340.0,0.66095464]
[1737796667665,0.00014338,104350.0,104340.0,2.21884846]
[1737796668059,0.00014338,104350.0,104340.0,2.73554557]
[1737796668861,0.00143794,104360.0,104350.0,0.153352]
[1737796669068,0.00143794,104360.0,104350.0,0.36975964]
[1737796669265,0.58776962,104370.0,104350.0,0.40265964]
[1737796669460,0.58776962,104370.0,104360.0,0.26912564]
[1737796672066,0.577926,104370.0,104360.0,0.26912564]
[1737796673063,0.577926,104370.0,104360.0,1.76912564]
[1737796673968,0.577926,104370.0,104360.0,1.71123182]
[1737796675173,0.577926,104370.0,104360.0,1.72089775]
[1737796676561,0.577926,104370.0,104360.0,1.77879157]
[1737796678968,0.4246,104370.0,104360.0,1.77879157]
[1737796682560,0.0638,104370.0,104360.0,2.13959157]
[1737796683069,0.14577497,104380.0,104360.0,0.51645357]
[1737796683271,0.14577497,104380.0,104370.0,0.21121682]
[1737796683660,0.14577497,104380.0,104370.0,1.71121682]
[1737796685970,0.14577497,104380.0,104370.0,1.76911064]
[1737796686173,0.11507497,104380.0,104370.0,1.71121682]
[1737796686470,0.11507497,104380.0,104370.0,1.76911064]
[1737796687471,0.11507497,104380.0,104370.0,1.71121682]
[1737796688174,0.00014338,104380.0,104370.0,1.71121682]
[1737796688364,0.03104338,104380.0,104370.0,1.71121682]
[1737796688568,0.03104338,104380.0,104370.0,0.21121682]
[1737796689064,0.54515138,104380.0,104370.0,0.21121682]
[1737796693071,0.39184338,104380.0,104370.0,0.21121682]
[1737796694673,0.39184338,104380.0,104370.0,1.71121682]
[1737796704781,0.39184338,104380.0,104370.0,1.94018749]
[1737796705979,0.04062532,104380.0,104370.0,1.94018749]
[1737796706490,0.03104338,104380.0,104370.0,1.94018749]
[1737796706679,0.00014338,104380.0,104370.0,2.30098749]
[1737796706985,0.00014338,104380.0,104370.0,2.38968131]
[1737796707191,0.00014338,104380.0,104370.0,2.42298131]
[1737796707382,0.00014338,104380.0,104370.0,2.45578131]
[1737796707584,0.00014338,104380.0,104370.0,2.4971598]
[1737796708297,0.00014338,104380.0,104370.0,2.45578131]
[1737796709583,0.00014338,104380.0,104370.0,0.95578131]
[1737796709982,0.00014338,104380.0,104370.0,2.45578131]
[1737796711090,0.00014338,104380.0,104370.0,2.49715672]
[1737796712094,0.00014338,104380.0,104370.0,2.5547045]
[1737796714895,0.00014338,104380.0,104370.0,2.56553068]
[1737796715194,0.00014338,104380.0,104370.0,2.53273068]
[1737796715494,0.00014338,104380.0,104370.0,2.87655282]
[1737796715804,0.00014338,104380.0,104370.0,1.34325282]
[1737796715985,0.00014338,104380.0,104370.0,1.30187741]
[1737796716185,0.00014338,104380.0,104370.0,2.80187741]
[1737796717191,0.00014338,104380.0,104370.0,2.73315741]
[1737796717394,0.00014338,104380.0,104370.0,2.77103741]
[1737796717694,0.03014338,104380.0,104370.0,2.70235741]
[1737796720388,0.03014338,104380.0,104370.0,2.5879052]
[1737796720595,0.6021452,104380.0,104370.0,2.16921138]
[1737796720999,0.6021452,104380.0,104370.0,2.01588838]
[1737796721300,0.54425138,104380.0,104370.0,2.0737822]
[1737796724203,0.54425138,104380.0,104370.0,1.78726375]
[1737796726304,0.6021452,104380.0,104370.0,1.72936993]
[1737796727802,0.66003902,104380.0,104370.0,1.72936993]
[1737796728598,0.77497061,104380.0,104370.0,1.5]
[1737796730707,0.77497061,104380.0,104360.0,0.51588838]
[1737796730708,0.153323,104370.0,104360.0,0.51588838]
[1737796731001,0.63371682,104370.0,104360.0,2.01588838]
[1737796732609,0.63371682,104370.0,104360.0,0.51588838]
[1737796733612,0.153338,104360.0,104350.0,1.72999331]
[1737796733801,0.60313182,104360.0,104350.0,1.72951331]
[1737796734305,0.66102564,104360.0,104350.0,1.72951331]
[1737796734507,0.60313182,104360.0,104350.0,1.72951331]
[1737796738217,0.60313182,104360.0,104350.0,1.50014338]
[1737796738811,0.61264738,104360.0,104350.0,1.50014338]
[1737796745621,0.58154738,104360.0,104350.0,1.50014338]
[1737796745810,0.58154738,104360.0,104350.0,1.53264338]
[1737796746321,0.58154738,104360.0,104350.0,1.50014338]
[1737796749223,0.52365356,104360.0,104350.0,1.7113892]
[1737796749519,0.52365356,104360.0,104350.0,1.7763892]
[1737796750016,0.514138,104360.0,104350.0,1.7763892]
[1737796751722,0.3608,104360.0,104350.0,1.7763892]
[1737796756226,0.62905859,104370.0,104360.0,0.153338]
[1737796756526,0.62905859,104370.0,104360.0,0.24223182]
[1737796756926,0.77277886,104370.0,104360.0,0.24223182]
[1737796757315,0.77277886,104370.0,104360.0,0.30012564]
[1737796757922,0.77277886,104370.0,104360.0,0.24223182]
[1737796758527,0.25865186,104370.0,104360.0,0.60303182]
[1737796758724,0.25865186,104370.0,104360.0,0.66092564]
[1737796760527,0.11493159,104370.0,104360.0,0.89029557]
[1737796765120,0.65797565,104380.0,104370.0,0.153323]
[1737796765121,0.62918697,104380.0,104370.0,0.153323]
[1737796765326,0.62918697,104380.0,104370.0,0.21121682]
[1737796769035,0.51425538,104380.0,104370.0,0.21121682]
[1737796773935,0.51425538,104380.0,104370.0,1.71121682]
[1737796777136,0.51425538,104380.0,104370.0,1.7210577]
[1737796778944,0.51425538,104380.0,104370.0,0.2210577]
[1737796779539,0.51425538,104380.0,104370.0,1.7210577]
[1737796784042,0.60033806,104380.0,104370.0,1.7210577]
[1737796785948,0.60033806,104380.0,104370.0,0.2210577]
[1737796787747,0.44702606,104380.0,104370.0,0.2210577]
[1737796788445,0.56195765,104380.0,104370.0,0.45042763]
[1737796789048,0.20115765,104380.0,104370.0,0.81122763]
[1737796791853,0.08622606,104380.0,104370.0,0.86837615]
[1737796796353,0.08622606,104380.0,104370.0,0.90980344]
[1737796798951,0.08622606,104380.0,104370.0,0.86837615]
[1737796799257,0.00014338,104380.0,104370.0,1.253623]
[1737796799659,0.00014338,104380.0,104370.0,1.21219829]
[1737796800661,0.00014338,104380.0,104370.0,2.71219829]
[1737796802159,0.00014338,104380.0,104370.0,2.36837615]
[1737796803352,0.00014338,104380.0,104370.0,0.86837615]
[1737796805860,0.00014338,104380.0,104370.0,0.90979262]
[1737796806763,0.00014338,104380.0,104370.0,0.86837615]
[1737796813175,0.00014338,104380.0,104370.0,0.90978873]
[1737796813478,0.00014338,104380.0,104370.0,0.86837615]
[1737796813671,0.00014338,104380.0,104370.0,0.90978835]
[1737796814174,0.00014338,104380.0,104370.0,0.86837615]
[1737796814566,0.00014338,104380.0,104370.0,0.90978865]
[1737796817572,0.00014338,104380.0,104370.0,2.40978865]
[1737796818376,0.00014338,104380.0,104370.0,2.75361079]
[1737796821575,0.00014338,104380.0,104370.0,2.73633788]
[1737796823184,0.00014338,104380.0,104370.0,1.23633788]
[1737796823679,0.00014338,104380.0,104370.0,2.73633788]
[1737796825779,0.00014338,104380.0,104370.0,2.46709234]
[1737796829375,0.08622606,104380.0,104370.0,2.46709234]
[1737796832788,0.08622606,104380.0,104370.0,2.75415679]
[1737796833886,0.09604232,104380.0,104370.0,2.75415679]
[1737796834983,0.08622606,104380.0,104370.0,2.75415679]
[1737796845696,0.08622606,104380.0,104370.0,1.25415679]
[1737796846103,0.60033406,104380.0,104370.0,0.67229909]
[1737796846293,0.68852788,104380.0,104370.0,0.63088659]
[1737796851397,0.86109706,104380.0,104360.0,2.688889]
[1737796851597,0.86109706,104380.0,104360.0,2.688369]
[1737796852798,0.80320324,104380.0,104370.0,0.05789382]
[1737796854008,0.80320324,104380.0,104360.0,2.688369]
[1737796854302,0.80320324,104380.0,104370.0,0.05789382]
[1737796855200,0.77290324,104380.0,104370.0,0.21121682]
[1737796855502,0.62918297,104380.0,104370.0,0.21121682]
[1737796858901,0.71528663,104380.0,104370.0,0.21121682]
[1737796864507,0.20117863,104380.0,104370.0,0.57201682]
[1737796864709,0.20117863,104380.0,104370.0,0.60211682]
[1737796864902,0.20117863,104380.0,104370.0,0.63381682]
[1737796865299,0.20117863,104380.0,104370.0,2.13381682]
[1737796869317,0.00014338,104380.0,104370.0,2.650476]
[1737796870709,0.00014338,104380.0,104370.0,2.66004355]
[1737796876314,0.00014338,104380.0,104370.0,2.71793737]
[1737796876510,0.20103525,104390.0,104380.0,0.26909564]
[1737796876713,0.20103525,104390.0,104380.0,0.66099564]
[1737796881020,0.20103525,104390.0,104380.0,0.89059037]
[1737796881224,0.72487082,104400.0,104380.0,0.89059037]
[1737796881527,0.72487082,104400.0,104390.0,0.05789382]
[1737796883823,0.71526063,104400.0,104390.0,0.21118782]
[1737796884121,0.08624704,104400.0,104390.0,0.21118782]
[1737796886223,0.08624704,104400.0,104390.0,0.62988164]
[1737796886429,0.08624704,104400.0,104390.0,0.57198782]
[1737796886830,0.08624704,104400.0,104390.0,2.12988164]
[1737796887626,0.08624704,104400.0,104390.0,2.16238164]
[1737796888028,0.08624704,104400.0,104390.0,2.23106164]
[1737796888232,0.08624704,104400.0,104390.0,2.2407876]
[1737796888638,0.08624704,104400.0,104390.0,2.31447908]
[1737796888837,0.26760577,104410.0,104390.0,2.16118508]
[1737796889038,0.26760577,104410.0,104400.0,0.66236664]
[1737796889830,0.11493159,104410.0,104400.0,0.66236664]
[1737796891742,0.47716891,104420.0,104410.0,0.153264]
[1737796891942,0.47716891,104420.0,104410.0,0.21115782]
[1737796893034,0.47716891,104420.0,104410.0,1.71115782]
[1737796893241,0.47716891,104420.0,104410.0,0.21115782]
[1737796894844,0.36223732,104420.0,104410.0,0.21115782]
[1737796897750,0.36223732,104420.0,104410.0,0.22072456]
[1737796903241,0.00143732,104420.0,104410.0,0.58152456]
[1737796905552,0.0947,104430.0,104420.0,0.15325]
[1737796905746,0.0947,104430.0,104420.0,0.62983764]
[1737796906054,0.0947,104430.0,104420.0,2.12983764]
[1737796909946,0.0947,104430.0,104420.0,0.62983764]
[1737796911555,0.0947,104430.0,104420.0,0.62952466]
[1737796915256,0.247935,104430.0,104420.0,0.57163084]
[1737796915452,0.66662882,104430.0,104420.0,0.05789382]
[1737796915850,0.608735,104430.0,104420.0,0.05789382]
[1737796920558,0.86738686,104430.0,104420.0,0.05789382]
[1737796921351,0.86738686,104430.0,104420.0,1.55789382]
[1737796922153,0.50658686,104430.0,104420.0,1.55789382]
[1737796923150,0.86738686,104430.0,104420.0,1.55789382]
[1737796924556,0.72366659,104430.0,104420.0,1.55789382]
[1737796927763,0.72366659,104430.0,104420.0,1.71114382]
[1737796929550,0.69226659,104430.0,104420.0,1.71114382]
[1737796929950,0.69226659,104430.0,104420.0,1.76903764]
[1737796930366,0.69226659,104430.0,104420.0,1.71114382]
[1737796931463,0.69226659,104430.0,104420.0,1.76903764]
[1737796931762,0.69226659,104430.0,104420.0,1.80173764]
[1737796932257,0.65774227,104440.0,104420.0,2.00928764]
[1737796932461,0.65774227,104440.0,104430.0,0.21112882]
[1737796935865,0.50452027,104440.0,104430.0,0.21112882]
[1737796936069,0.14372027,104440.0,104430.0,0.24222882]
[1737796936364,0.14372027,104440.0,104430.0,0.27412882]
[1737796936964,0.14372027,104440.0,104430.0,1.77412882]
[1737796939166,0.14372027,104440.0,104430.0,1.71112882]
[1737796940873,0.9943903,104450.0,104430.0,1.71112882]
[1737796942871,0.93649648,104450.0,104440.0,0.05789382]
[1737796943968,0.62031188,104450.0,104440.0,0.05789382]
[1737796945167,0.62031188,104450.0,104440.0,0.21111382]
[1737796950280,0.62031188,104450.0,104440.0,0.15322]
[1737796953885,0.62031188,104450.0,104440.0,0.21111382]
[1737796960694,0.76403215,104450.0,104440.0,0.21111382]
[1737796963600,0.76403215,104450.0,104440.0,0.05789382]
[1737796964791,0.93649648,104450.0,104440.0,0.28645943]
[1737796965191,0.93649648,104450.0,104440.0,0.22856561]
[1737796968500,0.15322,104440.0,104430.0,0.72689526]
[1737796971609,0.15322,104440.0,104430.0,0.43983081]
[1737796977608,0.15322,104440.0,104430.0,0.72689526]
[1737796986515,0.93649748,104450.0,104440.0,0.15322]
[1737796986707,0.93649748,104450.0,104440.0,0.21111382]
[1737796991413,0.76403315,104450.0,104440.0,0.21111382]
[1737796995023,0.40323315,104450.0,104440.0,0.21111382]
[1737796995408,0.25002215,104450.0,104440.0,0.21111382]
[1737796995613,0.25002215,104450.0,104440.0,2.07191382]
[1737796996621,0.25002215,104450.0,104440.0,2.12980764]
[1737796996916,0.25002215,104450.0,104440.0,2.07191382]
[1737796997821,0.25002215,104450.0,104440.0,2.12980764]
[1737796998216,0.25002215,104450.0,104440.0,2.07191382]
[1737796998517,0.25002215,104450.0,104440.0,2.08160416]
[1737796998723,0.25002215,104450.0,104440.0,0.58160416]